bitfinex/quotes_BTCUSD_20250423
["timestamp","ask_amount","ask_price","bid_price","bid_amount"]
[1745436591607,0.10735584,92955.0,92954.0,0.21558488]
[1745436591811,0.11235584,92955.0,92954.0,0.002]
[1745436592024,0.11635584,92955.0,92954.0,0.002]
[1745436592242,0.11635584,92955.0,92954.0,0.21716018]
[1745436600204,0.12799142,92955.0,92954.0,0.002]
[1745436600410,0.11635584,92955.0,92954.0,0.21716018]
[1745436600833,0.0094657,92955.0,92954.0,0.55716018]
[1745436601032,0.0054657,92955.0,92954.0,0.001]
[1745436601239,0.11235584,92955.0,92954.0,0.002]
[1745436601459,0.11235584,92955.0,92954.0,0.001]
[1745436601694,0.0054657,92955.0,92954.0,0.4342]
[1745436601916,0.0054657,92955.0,92954.0,0.4332]
[1745436602167,0.0044657,92955.0,92954.0,0.4332]
[1745436602379,0.0044657,92955.0,92954.0,0.3877]
[1745436603013,0.0094657,92955.0,92954.0,0.3887]
[1745436603225,0.11635584,92955.0,92954.0,0.342]
[1745436603442,0.11635584,92955.0,92954.0,0.002]
[1745436603652,0.11235584,92955.0,92954.0,0.001]
[1745436604072,0.11735584,92955.0,92954.0,0.002]
[1745436604493,0.11635584,92955.0,92954.0,0.002]
[1745436604734,0.11135584,92955.0,92954.0,0.001]
[1745436604936,0.11535584,92955.0,92954.0,0.002]
[1745436605247,0.12035584,92955.0,92954.0,0.002]
[1745436605448,0.01454085,92953.0,92951.0,0.0004247]
[1745436605688,0.3365958,92952.0,92951.0,0.0004247]
[1745436605912,0.12143099,92952.0,92951.0,0.0004247]
[1745436606159,0.20000066,92952.0,92951.0,0.0004247]
[1745436607837,0.12143099,92952.0,92951.0,0.0004247]
[1745436608041,0.16743099,92952.0,92951.0,0.0014247]
[1745436608254,0.17243099,92952.0,92951.0,0.0024247]
[1745436608696,0.17243099,92952.0,92951.0,0.0014247]
[1745436608908,0.17643099,92952.0,92951.0,0.0024247]
[1745436609321,0.29165176,92952.0,92951.0,0.0024247]
[1745436611538,0.21477014,92952.0,92951.0,0.0024247]
[1745436614345,0.11589014,92952.0,92951.0,0.0024247]
[1745436622895,0.11589014,92952.0,92949.0,0.21644849]
[1745436623316,0.11589014,92952.0,92950.0,0.21516736]
[1745436623949,0.11189014,92952.0,92950.0,0.21516736]
[1745436624120,0.11589014,92952.0,92950.0,0.21516736]
[1745436624807,0.11189014,92952.0,92950.0,0.21516736]
[1745436625222,0.10689014,92952.0,92950.0,0.21516736]
[1745436625432,0.11189014,92952.0,92950.0,0.21516736]
[1745436625857,0.10689014,92952.0,92950.0,0.21516736]
[1745436626072,0.11589014,92952.0,92950.0,0.21716736]
[1745436629765,0.0004657,92955.0,92951.0,0.34]
[1745436629987,0.0004657,92955.0,92954.0,0.55516018]
[1745436631131,0.0034657,92955.0,92954.0,0.55516018]
[1745436631779,0.0054657,92955.0,92954.0,0.55516018]
[1745436632205,0.0074657,92955.0,92954.0,0.55516018]
[1745436632629,0.0054657,92955.0,92954.0,0.55516018]
[1745436632860,0.0044657,92955.0,92954.0,0.55516018]
[1745436633307,0.0054657,92955.0,92954.0,0.55516018]
[1745436633761,0.0044657,92955.0,92954.0,0.55516018]
[1745436634009,0.0044657,92955.0,92954.0,0.55616018]
[1745436634471,0.0044657,92955.0,92954.0,0.55516018]
[1745436634688,0.0044657,92955.0,92954.0,0.55716018]
[1745436634895,0.0855144,92984.0,92974.0,0.2151139]
[1745436635111,0.11486515,92975.0,92974.0,0.2151139]
[1745436635332,0.10689014,92975.0,92974.0,0.21525369]
[1745436636422,0.11189014,92975.0,92974.0,0.21625369]
[1745436637115,0.11689014,92975.0,92974.0,0.21725369]
[1745436639054,0.01,92975.0,92974.0,0.21725369]
[1745436639474,0.11689014,92975.0,92974.0,0.21725369]
[1745436639707,0.10689014,92975.0,92974.0,0.21525369]
[1745436639914,0.11189014,92975.0,92974.0,0.21625369]
[1745436640100,0.11589014,92975.0,92974.0,0.21625369]
[1745436646828,0.009,92975.0,92974.0,0.21625369]
[1745436647376,0.009,92975.0,92974.0,0.55625369]
[1745436648428,0.005,92975.0,92974.0,0.55625369]
[1745436648633,0.007,92975.0,92974.0,0.55625369]
[1745436649033,0.002,92975.0,92974.0,0.55525369]
[1745436649234,0.005,92975.0,92974.0,0.55625369]
[1745436649431,0.003,92975.0,92974.0,0.55525369]
[1745436649674,0.00799515,92987.0,92986.0,0.21508614]
[1745436649979,0.10689014,92987.0,92986.0,0.21508614]
[1745436650421,0.02529538,92984.0,92975.0,0.21511073]
[1745436650647,0.01454085,92975.0,92974.0,0.00013979]
[1745436650861,0.26561099,92975.0,92974.0,0.00013979]
[1745436651062,0.31361099,92975.0,92974.0,0.00013979]
[1745436651760,0.21493099,92975.0,92974.0,0.00013979]
[1745436651977,0.31361099,92975.0,92974.0,0.00113979]
[1745436652179,0.31761099,92975.0,92974.0,0.00113979]
[1745436652591,0.32361099,92975.0,92974.0,0.00213979]
[1745436652800,0.31961099,92975.0,92974.0,0.00013979]
[1745436653489,0.20639014,92975.0,92974.0,0.00013979]
[1745436653713,0.31007014,92975.0,92974.0,0.00113979]
[1745436654132,0.20639014,92975.0,92974.0,0.00013979]
[1745436654348,0.30507014,92975.0,92974.0,0.00013979]
[1745436654554,0.31961099,92975.0,92974.0,0.00013979]
[1745436654754,0.348118,92975.0,92974.0,0.00113979]
[1745436655092,0.31761099,92975.0,92974.0,0.00113979]
[1745436655516,0.30807014,92975.0,92974.0,0.00213979]
[1745436655730,0.26007014,92975.0,92974.0,0.00213979]
[1745436655940,0.21457014,92975.0,92974.0,0.00213979]
[1745436657186,0.11589014,92975.0,92974.0,0.00213979]
[1745436657662,0.009,92975.0,92974.0,0.00213979]
[1745436657864,0.009,92975.0,92974.0,0.34213979]
[1745436658084,0.005,92975.0,92974.0,0.34113979]
[1745436658279,0.006,92975.0,92974.0,0.34213979]
[1745436658483,0.001,92975.0,92974.0,0.34113979]
[1745436658900,0.002,92975.0,92974.0,0.34113979]
[1745436659509,0.001,92975.0,92974.0,0.34113979]
[1745436659832,0.001,92987.0,92986.0,0.21508614]
[1745436660629,0.001,92987.0,92986.0,0.55508614]
[1745436661484,0.002,93009.0,93008.0,0.21503526]
[1745436661485,0.00100001,93009.0,93008.0,0.21503526]
[1745436661706,0.10789015,93009.0,93008.0,0.21503526]
[1745436661932,0.00100001,93009.0,93008.0,0.55503526]
[1745436662357,0.05040156,93021.0,93008.0,0.55503526]
[1745436662358,0.000851,93021.0,93012.0,0.21502601]
[1745436662826,0.000851,93021.0,93016.0,0.21501677]
[1745436663046,0.00098971,93017.0,93016.0,0.55501677]
[1745436664143,0.10787985,93017.0,93016.0,0.55501677]
[1745436665087,0.10987985,93017.0,93016.0,0.55501677]
[1745436665463,0.00298971,93017.0,93016.0,0.55501677]
[1745436666225,0.0008502,93026.0,93016.0,0.55501677]
[1745436666226,0.0008502,93026.0,93025.0,0.55499596]
[1745436667304,0.0048502,93026.0,93025.0,0.55599596]
[1745436667511,0.0088502,93026.0,93025.0,0.55599596]
[1745436667971,0.0048502,93026.0,93025.0,0.55499596]
[1745436668226,0.0078502,93026.0,93025.0,0.55499596]
[1745436668416,0.0018502,93026.0,93025.0,0.55499596]
[1745436668625,0.0038502,93026.0,93025.0,0.55499596]
[1745436669436,0.0028502,93026.0,93025.0,0.55499596]
[1745436669848,0.0028502,93026.0,93025.0,0.55599596]
[1745436670049,0.0008502,93026.0,93025.0,0.55599596]
[1745436670288,0.0028502,93026.0,93025.0,0.55599596]
[1745436670450,0.0008502,93026.0,93025.0,0.55499596]
[1745436670816,0.0028502,93026.0,93025.0,0.55599596]
[1745436672708,0.0008496,93027.0,93026.0,0.34]
[1745436673615,1e-08,93027.0,93026.0,0.34]
[1745436674237,0.00100001,93027.0,93026.0,0.34]
[1745436674396,0.00100001,93027.0,93026.0,0.341]
[1745436675189,1e-08,93027.0,93026.0,0.001]
[1745436675386,1e-08,93027.0,93026.0,0.341]
[1745436676151,1e-08,93027.0,93026.0,0.34]
[1745436676354,1e-08,93027.0,93026.0,0.002]
[1745436676566,1e-08,93027.0,93026.0,0.0080094]
[1745436676988,1e-08,93027.0,93026.0,0.0030094]
[1745436677175,1e-08,93027.0,93026.0,0.0040094]
[1745436677376,1e-08,93027.0,93026.0,0.0060094]
[1745436677576,1e-08,93027.0,93026.0,0.001]
[1745436677779,1e-08,93027.0,93026.0,0.0030094]
[1745436677974,1e-08,93027.0,93026.0,0.0060094]
[1745436682083,0.0008496,93047.0,93041.0,0.01074794]
[1745436682318,0.0008496,93047.0,93043.0,0.55495437]
[1745436683312,0.003851,93044.0,93043.0,0.55495437]
[1745436683520,0.004851,93044.0,93043.0,0.55495437]
[1745436683735,0.001851,93044.0,93043.0,0.55495437]
[1745436683947,0.000851,93044.0,93043.0,0.55495437]
[1745436684155,0.000851,93044.0,93043.0,0.55595437]
[1745436685661,0.000851,93044.0,93043.0,0.55495437]
[1745436685849,0.001851,93044.0,93043.0,0.55495437]
[1745436686365,1e-08,93049.0,93047.0,0.34]
[1745436686618,1e-08,93049.0,93048.0,0.55795145]
[1745436686827,1e-08,93055.0,93054.0,0.55492896]
[1745436687052,0.00046592,93055.0,93054.0,0.55492896]
[1745436688363,0.00146592,93055.0,93054.0,0.55492896]
[1745436688561,1e-08,93055.0,93054.0,0.60062896]
[1745436688763,1e-08,93059.0,93058.0,0.55491972]
[1745436689104,0.00013964,93059.0,93058.0,0.55491972]
[1745436690538,0.00113964,93059.0,93058.0,0.55491972]
[1745436690771,0.0463492,93082.0,93058.0,0.55491972]
[1745436690772,1e-08,93069.0,93066.0,0.01074506]
[1745436691029,1e-08,93069.0,93068.0,0.55489663]
[1745436692953,1e-08,93069.0,93068.0,0.60079663]
[1745436693176,0.0008492,93082.0,93081.0,0.55486662]
[1745436694464,0.002,93089.0,93088.0,0.21485046]
[1745436694664,0.00213958,93089.0,93088.0,0.21485046]
[1745436694884,0.00213958,93089.0,93088.0,0.55485046]
[1745436695092,1e-08,93089.0,93088.0,0.55485046]
[1745436696737,0.00100001,93089.0,93088.0,0.55485046]
[1745436697158,0.00200001,93089.0,93088.0,0.55485046]
[1745436698614,0.00100001,93089.0,93088.0,0.55485046]
[1745436699461,1e-08,93089.0,93088.0,0.55485046]
[1745436702621,1e-08,93089.0,93088.0,0.55585046]
[1745436704796,1e-08,93089.0,93088.0,0.55485046]
[1745436705230,1e-08,93089.0,93088.0,0.55585046]
[1745436705646,1e-08,93089.0,93088.0,0.55485046]
[1745436705854,1e-08,93089.0,93088.0,0.55585046]
[1745436710272,1e-08,93089.0,93088.0,0.05908823]
[1745436715171,1e-08,93089.0,93088.0,0.06209546]
[1745436715526,0.0008492,93097.0,93088.0,0.06209546]
[1745436715527,1e-08,93097.0,93096.0,0.214832]
[1745436715731,0.048,93109.0,93108.0,0.55480431]
[1745436715732,0.002,93109.0,93108.0,0.55480431]
[1745436716945,0.004,93109.0,93108.0,0.55480431]
[1745436717152,0.002,93109.0,93108.0,0.55480431]
[1745436717439,0.004,93109.0,93108.0,0.55480431]
[1745436718084,0.007,93109.0,93108.0,0.55480431]
[1745436718743,0.01,93109.0,93108.0,0.55480431]
[1745436719638,0.005,93109.0,93108.0,0.55480431]
[1745436719836,0.008,93109.0,93108.0,0.55480431]
[1745436720164,0.005,93109.0,93108.0,0.55480431]
[1745436720413,0.008,93109.0,93108.0,0.55480431]
[1745436720558,0.005,93109.0,93108.0,0.55480431]
[1745436720983,0.003,93109.0,93108.0,0.34]
[1745436721209,0.004,93109.0,93108.0,0.21480431]
[1745436721653,0.003,93109.0,93108.0,0.21480431]
[1745436722206,1e-08,93111.0,93110.0,0.55479969]
[1745436723528,0.20069015,93111.0,93110.0,0.55479969]
[1745436724251,0.09380001,93111.0,93110.0,0.55479969]
[1745436726176,0.09380001,93111.0,93110.0,0.55579969]
[1745436726886,0.09380001,93111.0,93110.0,0.55679969]
[1745436727087,1e-08,93111.0,93110.0,0.55679969]
[1745436727961,1e-08,93111.0,93110.0,0.55479969]
[1745436730478,1e-08,93111.0,93109.0,0.34]
[1745436731104,1e-08,93111.0,93110.0,0.21780655]
[1745436731309,1e-08,93111.0,93110.0,0.21479969]
[1745436733217,0.0467,93135.0,93120.0,0.55477663]
[1745436733435,0.00098875,93127.0,93124.0,0.01073837]
[1745436733639,0.00098875,93127.0,93126.0,0.55476279]
[1745436734466,0.00298875,93127.0,93126.0,0.55476279]
[1745436734991,0.00098875,93127.0,93126.0,0.55476279]
[1745436735214,1e-08,93127.0,93126.0,0.55476279]
[1745436736191,1e-08,93127.0,93126.0,0.55576279]
[1745436736805,1e-08,93127.0,93126.0,0.55676279]
[1745436737185,1e-08,93127.0,93126.0,0.55776279]
[1745436737756,1e-08,93127.0,93126.0,0.55676279]
[1745436737954,1e-08,93127.0,93126.0,0.55776279]
[1745436738376,1e-08,93127.0,93126.0,0.55676279]
[1745436738997,1e-08,93127.0,93126.0,0.55476279]
[1745436739424,1e-08,93127.0,93126.0,0.55576279]
[1745436739929,1e-08,93127.0,93126.0,0.55676279]
[1745436740151,1e-08,93127.0,93126.0,0.55476279]
[1745436740387,1e-08,93127.0,93126.0,0.55576279]
[1745436740603,1e-08,93127.0,93126.0,0.55676279]
[1745436740831,1e-08,93127.0,93126.0,0.55576279]
[1745436741303,1e-08,93127.0,93126.0,0.55976279]
[1745436741747,1e-08,93127.0,93126.0,0.55576279]
[1745436741970,1e-08,93127.0,93126.0,0.55976279]
[1745436742198,1e-08,93127.0,93126.0,0.56020859]
[1745436742423,1e-08,93127.0,93126.0,0.55820859]
[1745436742645,1e-08,93127.0,93126.0,0.56220859]
[1745436743355,1e-08,93127.0,93126.0,0.55820859]
[1745436743578,1e-08,93127.0,93126.0,0.56220859]
[1745436744462,1e-08,93129.0,93128.0,0.55475818]
[1745436744678,0.0008486,93147.0,93146.0,0.55471668]
[1745436746407,0.0008496,93153.0,93152.0,0.21470285]
[1745436746618,0.0008496,93153.0,93152.0,0.55470285]
[1745436748094,0.0008496,93153.0,93152.0,0.55570285]
[1745436748572,0.0008496,93153.0,93152.0,0.55470285]
[1745436749202,0.0008496,93153.0,93152.0,0.55570285]
[1745436749838,0.0018496,93153.0,93152.0,0.55570285]
[1745436750394,0.0048496,93153.0,93152.0,0.55570285]
[1745436750605,0.0038496,93153.0,93152.0,0.55470285]
[1745436750801,0.0008496,93153.0,93152.0,0.55470285]
[1745436751221,0.0018496,93153.0,93152.0,0.55470285]
[1745436754316,0.00157444,93153.0,93152.0,0.55470285]
[1745436759563,0.00157444,93153.0,93152.0,0.55570285]
[1745436759775,1e-08,93165.0,93164.0,0.55467519]
[1745436759983,0.00046537,93165.0,93164.0,0.55467519]
[1745436760851,0.04786537,93165.0,93164.0,0.55467519]
[1745436761058,0.05086537,93165.0,93164.0,0.55467519]
[1745436761374,0.04786537,93165.0,93164.0,0.55467519]
[1745436761793,0.05086537,93165.0,93164.0,0.55467519]
[1745436762255,0.05286537,93165.0,93164.0,0.55467519]
[1745436763061,0.04986537,93165.0,93164.0,0.55467519]
[1745436763441,0.04786537,93165.0,93164.0,0.55467519]
[1745436765570,0.00046537,93165.0,93164.0,0.55467519]
[1745436769958,0.00046537,93165.0,93164.0,0.55567519]
[1745436770759,0.00046537,93165.0,93164.0,0.55667519]
[1745436772013,0.00046537,93165.0,93164.0,0.55467519]
[1745436772183,0.00046537,93165.0,93164.0,0.55567519]
[1745436772760,0.00246537,93165.0,93164.0,0.55567519]
[1745436773142,0.00046537,93165.0,93164.0,0.55467519]
[1745436773557,0.00146537,93165.0,93164.0,0.55467519]
[1745436774174,0.00246537,93165.0,93164.0,0.55467519]
[1745436780335,1e-08,93176.0,93175.0,0.55464985]
[1745436780536,0.0001395,93176.0,93175.0,0.55464985]
[1745436782972,0.0011395,93176.0,93175.0,0.55464985]
[1745436784395,0.0001395,93176.0,93175.0,0.55464985]
[1745436785908,0.0011395,93176.0,93175.0,0.55564985]
[1745436786117,1e-08,93176.0,93175.0,0.55564985]
[1745436786318,0.002,93189.0,93188.0,0.2146199]
[1745436787558,0.004,93189.0,93188.0,0.2146199]
[1745436788637,0.002,93189.0,93188.0,0.2146199]
[1745436788863,0.003,93189.0,93188.0,0.2146199]
[1745436789069,0.005,93189.0,93188.0,0.2146199]
[1745436789805,0.004,93189.0,93188.0,0.2146199]
[1745436789969,0.006,93189.0,93188.0,0.2146199]
[1745436791001,0.11389014,93189.0,93185.0,0.03395808]
[1745436791167,0.0474,93187.0,93185.0,0.03395808]
[1745436791364,0.15409014,93186.0,93185.0,0.03395808]
[1745436791590,0.19939014,93186.0,93185.0,0.03395808]
[1745436792355,0.19939014,93186.0,93185.0,0.24858489]
[1745436792780,0.0472,93186.0,93185.0,0.24858489]
[1745436792992,0.05216,93186.0,93185.0,0.24858489]
[1745436794210,0.005,93186.0,93185.0,0.24858489]
[1745436794821,0.005,93189.0,93188.0,0.2146199]
[1745436795082,0.10989014,93189.0,93188.0,0.2146199]
[1745436796067,0.15889014,93189.0,93188.0,0.2146199]
[1745436796255,0.16189014,93189.0,93188.0,0.2146199]
[1745436801811,0.006,93189.0,93188.0,0.5546199]
[1745436802351,0.004,93189.0,93188.0,0.5546199]
[1745436802753,0.005,93189.0,93188.0,0.5546199]
[1745436803207,0.003,93189.0,93188.0,0.5546199]
[1745436804607,0.004,93189.0,93188.0,0.5546199]
[1745436804828,0.004,93189.0,93188.0,0.55025082]
[1745436805267,0.003,93189.0,93188.0,0.55025082]
[1745436805613,0.004,93189.0,93188.0,0.55025082]
[1745436809765,0.01,93200.0,93188.0,0.55025082]
[1745436809766,0.01,93200.0,93199.0,0.55459457]
[1745436810442,1e-08,93205.0,93204.0,0.55458306]
[1745436810646,0.0008492,93227.0,93208.0,0.21457385]
[1745436810863,1e-08,93209.0,93208.0,0.55457385]
[1745436811067,0.0008492,93227.0,93213.0,0.55456234]
[1745436811068,1e-08,93214.0,93213.0,0.55456234]
[1745436812441,1e-08,93214.0,93213.0,0.55656234]
[1745436812641,1e-08,93214.0,93213.0,0.55756234]
[1745436812837,1e-08,93214.0,93213.0,0.60556234]
[1745436813652,0.0008492,93227.0,93226.0,0.55453242]
[1745436814850,0.0018492,93227.0,93226.0,0.55453242]
[1745436815005,0.0018492,93227.0,93226.0,0.55553242]
[1745436815425,0.0008492,93227.0,93226.0,0.55453242]
[1745436815628,0.0008492,93227.0,93226.0,0.55753242]
[1745436820126,0.0008492,93227.0,93226.0,0.65173242]
[1745436820528,1e-08,93227.0,93226.0,0.65173242]
[1745436822223,1e-08,93227.0,93226.0,0.65273242]
[1745436823046,1e-08,93227.0,93226.0,0.60383242]
[1745436823247,1e-08,93227.0,93226.0,0.55853242]
[1745436829707,1e-08,93229.0,93228.0,0.55452782]
[1745436831087,1e-08,93229.0,93228.0,0.55552782]
[1745436838757,1e-08,93229.0,93228.0,0.001]
[1745436838962,1e-08,93229.0,93228.0,0.21552782]
[1745436839997,1e-08,93229.0,93228.0,0.55552782]
[1745436840515,1e-08,93229.0,93228.0,0.34]
[1745436840829,1e-08,93229.0,93228.0,0.55452782]
[1745436841785,0.20349015,93229.0,93228.0,0.21452782]
[1745436842423,0.20349015,93229.0,93227.0,0.21453012]
[1745436842424,0.0473,93228.0,93227.0,0.21453012]
[1745436842630,0.0473,93227.0,93226.0,0.21553242]
[1745436842834,0.15419014,93227.0,93226.0,0.21553242]
[1745436843322,0.15419014,93227.0,93226.0,0.001]
[1745436843525,0.16873099,93227.0,93226.0,0.001]
[1745436844162,0.21853099,93227.0,93226.0,0.001]
[1745436844483,0.01072466,93243.0,93240.0,9.0880312]
[1745436844740,0.10689014,93241.0,93240.0,8.8944312]
[1745436844991,0.32252744,93241.0,93240.0,8.8152312]
[1745436845453,0.3538022,93241.0,93240.0,8.8152312]
[1745436845686,0.42941758,93241.0,93240.0,8.8152312]
[1745436845920,0.46069234,93241.0,93240.0,8.8152312]
[1745436846166,0.42941758,93241.0,93240.0,8.81103636]
[1745436846399,0.51120847,93241.0,93240.0,8.81103636]
[1745436846854,0.50420847,93241.0,93240.0,8.81103636]
[1745436847072,0.61176847,93241.0,93240.0,8.81103636]
[1745436847262,0.57134089,93241.0,93240.0,8.81103636]
[1745436847469,0.58126407,93241.0,93240.0,8.81103636]
[1745436847686,0.45855147,93241.0,93240.0,8.81103636]
[1745436848060,0.45327147,93241.0,93240.0,8.81103636]
[1745436848267,0.44627147,93241.0,93240.0,8.81103636]
[1745436848462,0.42834829,93241.0,93240.0,8.81103636]
[1745436848668,0.43334829,93241.0,93240.0,8.81103636]
[1745436848869,0.52260977,93241.0,93240.0,8.81103636]
[1745436849070,0.43834829,93241.0,93240.0,8.81103636]
[1745436849543,0.43334829,93241.0,93240.0,8.81103636]
[1745436849848,0.10374953,93241.0,93240.0,8.81103636]
[1745436850068,0.20930953,93241.0,93240.0,8.81103636]
[1745436850327,0.22385038,93241.0,93240.0,8.81103636]
[1745436851037,0.22385038,93241.0,93240.0,8.61115223]
[1745436851384,0.21885038,93241.0,93240.0,8.61115223]
[1745436851618,0.21385038,93241.0,93240.0,8.61115223]
[1745436851847,0.21785038,93241.0,93240.0,8.61115223]
[1745436852073,0.43234829,93241.0,93240.0,8.61115223]
[1745436852307,0.43734829,93241.0,93240.0,8.61115223]
[1745436852558,0.21785038,93241.0,93240.0,8.61115223]
[1745436852782,0.22185038,93241.0,93240.0,8.61115223]
[1745436853009,0.22785038,93241.0,93240.0,8.61115223]
[1745436853458,0.21985038,93241.0,93240.0,8.61115223]
[1745436854284,0.43434829,93241.0,93240.0,8.61115223]
[1745436854883,0.43934829,93241.0,93240.0,8.61115223]
[1745436855123,0.22485038,93241.0,93240.0,8.61115223]
[1745436855451,0.43934829,93241.0,93240.0,8.61115223]
[1745436855697,0.22485038,93241.0,93240.0,8.61115223]
[1745436855919,0.43934829,93241.0,93240.0,8.61115223]
[1745436856769,0.22485038,93241.0,93240.0,8.61115223]
[1745436860101,0.21030953,93241.0,93240.0,8.82565244]
[1745436860323,0.21030953,93241.0,93240.0,8.61115223]
[1745436861201,0.20530953,93241.0,93240.0,8.61115223]
[1745436861662,0.20430953,93241.0,93240.0,8.61115223]
[1745436861892,0.20930953,93241.0,93240.0,8.61115223]
[1745436862601,0.3549309,93251.0,93250.0,7.54714098]
[1745436862830,0.56050104,93251.0,93250.0,7.54714098]
[1745436865201,0.56650104,93251.0,93250.0,7.54714098]
[1745436865395,0.57050104,93251.0,93250.0,7.54714098]
[1745436869466,0.7704374,93251.0,93232.0,0.21451673]
[1745436869672,0.66354726,93251.0,93232.0,0.21651673]
[1745436869865,0.44907005,93251.0,93232.0,0.21651673]
[1745436870051,0.66354726,93251.0,93234.0,0.21451315]
[1745436870259,0.66354726,93251.0,93234.0,0.21451223]
[1745436870260,0.44507005,93251.0,93234.0,0.21451223]
[1745436870458,0.44507005,93251.0,93236.0,0.21450917]
[1745436870690,0.52096926,93251.0,93235.0,0.21451023]
[1745436870885,0.52096926,93251.0,93237.0,0.21450541]
[1745436871151,0.43034631,93251.0,93236.0,0.21450776]
[1745436871360,0.43034631,93251.0,93235.0,0.21651042]
[1745436871583,0.43034631,93251.0,93238.0,0.21450291]
[1745436871755,0.43134631,93251.0,93238.0,0.21450291]
[1745436871959,0.42934631,93251.0,93238.0,0.21450291]
[1745436872380,0.43034631,93251.0,93238.0,0.21450291]
[1745436872551,0.43034631,93251.0,93239.0,0.21450118]
[1745436872769,0.42934631,93251.0,93237.0,0.21450711]
[1745436872974,0.43034631,93251.0,93235.0,0.21651042]
[1745436873147,0.10782631,93251.0,93240.0,0.2144989]
[1745436873545,0.10782631,93251.0,93247.0,0.21448318]
[1745436873940,0.00914631,93251.0,93247.0,0.21448318]
[1745436874248,0.00914631,93251.0,93245.0,0.21448871]
[1745436874885,0.01114631,93251.0,93245.0,0.21448871]
[1745436875312,0.01214631,93251.0,93245.0,0.21448871]
[1745436875519,0.00814631,93251.0,93246.0,0.21448493]
[1745436875721,0.01414631,93251.0,93246.0,0.21448493]
[1745436875956,0.006,93251.0,93245.0,0.21448871]
[1745436876583,0.10739869,93252.0,93245.0,0.21448871]
[1745436876937,0.24264352,93251.0,93236.0,0.046]
[1745436877138,0.24264352,93251.0,93237.0,0.21450711]
[1745436877139,0.23191978,93251.0,93237.0,0.21450711]
[1745436877348,0.23191978,93251.0,93236.0,0.046]
[1745436877768,0.23491978,93251.0,93237.0,0.21450548]
[1745436878161,0.23491978,93251.0,93236.0,0.046]
[1745436878162,0.22011099,93251.0,93236.0,0.26050799]
[1745436878344,0.22311099,93251.0,93236.0,0.26050799]
[1745436878549,0.22611099,93251.0,93236.0,0.26050799]
[1745436878687,0.22311099,93251.0,93238.0,0.21450323]
[1745436879333,0.22311099,93251.0,93237.0,0.21450495]
[1745436879584,0.22211099,93251.0,93237.0,0.21450495]
[1745436879817,0.22511099,93251.0,93244.0,0.21448926]
[1745436880152,0.21057014,93251.0,93236.0,0.046]
[1745436880368,0.20757014,93251.0,93245.0,0.21448773]
[1745436880575,0.20757014,93251.0,93246.0,0.21448437]
[1745436880757,0.20557014,93251.0,93246.0,0.21448437]
[1745436881016,0.20557014,93251.0,93241.0,0.21449791]
[1745436881231,0.20857014,93251.0,93247.0,0.21448246]
[1745436881447,0.20557014,93251.0,93248.0,0.21447974]
[1745436881664,0.10468,93251.0,93249.0,0.21447754]
[1745436882016,0.10168,93251.0,93249.0,0.21447754]
[1745436882218,0.10368,93251.0,93249.0,0.21647754]
[1745436882420,0.005,93251.0,93250.0,0.047]
[1745436882764,0.007,93251.0,93250.0,0.19677339]
[1745436882938,0.004,93251.0,93250.0,0.19677339]
[1745436883117,0.006,93251.0,93250.0,0.19677339]
[1745436883549,0.006,93251.0,93250.0,0.0969]
[1745436883909,0.004,93251.0,93250.0,0.0969]
[1745436884123,0.002,93251.0,93250.0,0.0969]
[1745436884321,0.004,93251.0,93250.0,0.0969]
[1745436884547,0.002,93251.0,93250.0,0.0969]
[1745436884765,0.003,93251.0,93250.0,0.0969]
[1745436884948,0.004,93251.0,93250.0,0.0969]
[1745436885307,0.003,93251.0,93250.0,0.0969]
[1745436885570,0.004,93251.0,93250.0,0.0969]
[1745436885897,0.001,93251.0,93250.0,0.0969]
[1745436886364,0.002,93251.0,93250.0,0.0969]
[1745436887636,0.001,93251.0,93250.0,0.0969]
[1745436887838,0.002,93251.0,93250.0,0.0969]
[1745436888270,0.10889014,93251.0,93250.0,0.0969]
[1745436891705,0.10889014,93251.0,93249.0,0.002]
[1745436891862,0.002,93251.0,93249.0,0.002]
[1745436892497,0.001,93251.0,93249.0,0.21647938]
[1745436892808,0.001,93251.0,93249.0,0.002]
[1745436893360,0.000849,93252.0,93249.0,0.002]
[1745436893759,0.002,93251.0,93249.0,0.002]
[1745436894405,0.001,93251.0,93249.0,0.002]
[1745436895284,0.002,93251.0,93249.0,0.002]
[1745436900597,0.21647682,93251.0,93249.0,0.002]
[1745436900804,0.31503682,93251.0,93249.0,0.002]
[1745436901691,0.31403682,93251.0,93249.0,0.002]
[1745436901929,0.31303682,93251.0,93249.0,0.002]
[1745436902857,0.31903682,93251.0,93249.0,0.002]
[1745436902965,0.10456,93251.0,93249.0,0.002]
[1745436903205,0.10156,93251.0,93249.0,0.002]
[1745436903425,0.008,93251.0,93249.0,0.002]
[1745436903838,0.005,93251.0,93249.0,0.002]
[1745436904252,0.009,93251.0,93250.0,0.0477]
[1745436904495,0.009,93251.0,93250.0,0.0974]
[1745436905065,0.005,93251.0,93250.0,0.0974]
[1745436905415,0.007,93251.0,93250.0,0.0974]
[1745436905564,0.002,93251.0,93250.0,0.0974]
[1745436905982,0.005,93251.0,93250.0,0.0974]
[1745436906389,0.002,93251.0,93250.0,0.0974]
[1745436907225,0.001,93251.0,93250.0,0.0974]
[1745436907436,0.002,93251.0,93250.0,0.0974]
[1745436907857,0.0121409,93251.0,93250.0,0.0974]
[1745436908071,0.0121409,93251.0,93249.0,0.002]
[1745436908693,0.0111409,93251.0,93249.0,0.002]
[1745436908890,0.0121409,93251.0,93249.0,0.002]
[1745436909485,0.0111409,93251.0,93249.0,0.002]
[1745436909720,0.0161409,93251.0,93249.0,0.002]
[1745436909892,0.0151409,93251.0,93249.0,0.002]
[1745436910302,0.0191409,93251.0,93249.0,0.002]
[1745436910533,0.005,93251.0,93249.0,0.002]
[1745436911008,0.10756,93251.0,93249.0,0.002]
[1745436911605,0.10256,93251.0,93249.0,0.002]
[1745436911849,0.000849,93252.0,93249.0,0.21647818]
[1745436912071,0.002,93251.0,93250.0,0.0977]
[1745436912413,0.000849,93252.0,93250.0,0.0977]
[1745436912632,0.004,93251.0,93250.0,0.0977]
[1745436912818,0.004,93251.0,93250.0,0.31217721]
[1745436913018,0.004,93251.0,93250.0,0.0977]
[1745436913490,0.000849,93252.0,93250.0,0.0977]
[1745436913491,0.002849,93252.0,93250.0,0.0977]
[1745436913753,0.002,93251.0,93250.0,0.0977]